fUST/lending_fUST_20251119
["ID","MTS","AMOUNT","RATE_DAILY","PERIOD"]
[394360316,1763491742152,-500.0,0.00050136,120]
[394360317,1763491742181,-500.0,0.00050136,120]
[394360318,1763491742210,-1143.69,0.00050136,120]
[394360319,1763491742240,-541.48,0.00050136,120]
[394360320,1763491742272,-500.0,0.00050136,120]
[394360321,1763491742302,-500.0,0.00050136,120]
[394360322,1763491742331,-621.33,0.00050136,30]
[394360323,1763491742365,-500.0,0.00050136,120]
[394360324,1763491742395,-500.0,0.00050136,120]
[394360325,1763491742426,-500.0,0.00050136,120]
[394360326,1763491742458,-10753.53,0.00050136,60]
[394360327,1763491742489,-529.08442563,0.00050136,120]
[394360328,1763491742519,-500.0,0.00050136,120]
[394360329,1763491742551,-194.13823177,0.00050136,120]
[394360330,1763491742582,-646.78,0.00050136,120]
[394360331,1763491742616,-5110.2,0.00050136,120]
[394360332,1763491742647,-834.93,0.00050136,120]
[394360333,1763491742678,-500.0,0.00050136,120]
[394360334,1763491742710,-500.0,0.00050136,120]
[394360335,1763491742833,-500.0,0.00050136,120]
[394360336,1763491742888,-2659.82,0.00050136,120]
[394360337,1763491742918,-784.72,0.00050136,120]
[394360338,1763491742947,-500.0,0.0005041,120]
[394360339,1763491742978,-500.0,0.0005041,120]
[394360340,1763491743010,-512.86062253,0.0005041,120]
[394360341,1763491743041,-500.0,0.0005041,120]
[394360342,1763491743072,-500.0,0.0005041,120]
[394360343,1763491743101,-488.88212976,0.0005041,120]
[394360344,1763491743130,-500.0,0.0005041,120]
[394360345,1763491743160,-500.0,0.0005041,120]
[394360346,1763491743188,-500.0,0.0005041,120]
[394360347,1763491743216,-500.0,0.0005041,120]
[394360348,1763491743244,-500.0,0.0005041,120]
[394360349,1763491743271,-1143.69,0.0005041,120]
[394360350,1763491743302,-541.48,0.0005041,120]
[394360351,1763491743328,-500.0,0.0005041,120]
[394360352,1763491743353,-500.0,0.0005041,120]
[394360353,1763491743384,-621.33,0.0005041,30]
[394360354,1763491743412,-500.0,0.0005041,120]
[394360355,1763491743440,-500.0,0.0005041,120]
[394360356,1763491743470,-500.0,0.0005041,120]
[394360357,1763491743498,-10753.53,0.0005041,60]
[394360358,1763491743528,-500.0,0.0005041,120]
[394360359,1763491743557,-646.78,0.0005041,120]
[394360360,1763491743586,-5110.2,0.0005041,120]
[394360361,1763491743613,-834.93,0.0005041,120]
[394360362,1763491743642,-500.0,0.0005041,120]
[394360363,1763491743669,-500.0,0.0005041,120]
[394360364,1763491743697,-500.0,0.0005041,120]
[394360365,1763491743727,-2659.82,0.0005041,120]
[394360366,1763491743755,-784.72,0.0005041,120]
[394360367,1763491743785,-1000.0,0.00050587,120]
[394360368,1763491743816,-1000.0,0.00050587,120]
[394360369,1763491743844,-831.0,0.00050587,120]
[394360370,1763491743871,-510.60251156,0.00050684,120]
[394360371,1763491743898,-500.0,0.00050684,120]
[394360372,1763491743926,-500.0,0.00050684,120]
[394360373,1763491743952,-500.0,0.00050684,120]
[394360374,1763491743978,-500.0,0.00050684,120]
[394360375,1763491744005,-500.0,0.00050684,120]
[394360376,1763491744031,-500.0,0.00050684,120]
[394360377,1763491744059,-157.72767536,0.00050684,120]
[394360378,1763491744085,-500.0,0.00050684,120]
[394360379,1763491744112,-1143.69,0.00050684,120]
[394360380,1763491744138,-541.48,0.00050684,120]
[394360381,1763491744165,-500.0,0.00050684,120]
[394360382,1763491744191,-500.0,0.00050684,120]
[394360383,1763491744217,-621.33,0.00050684,30]
[394360384,1763491744244,-500.0,0.00050684,120]
[394360385,1763491744269,-500.0,0.00050684,120]
[394360386,1763491744297,-500.0,0.00050684,120]
[394360387,1763491744323,-10753.53,0.00050684,60]
[394360388,1763491744352,-500.0,0.00050684,120]
[394360389,1763491744380,-646.78,0.00050684,120]
[394360390,1763491744409,-5110.2,0.00050684,120]
[394360391,1763491744435,-834.93,0.00050684,120]
[394360392,1763491744461,-452.99568142,0.00050684,120]
[394360393,1763491744488,-500.0,0.00050684,120]
[394360394,1763491744513,-500.87438446,0.00050684,120]
[394360395,1763491744542,-2659.82,0.00050684,120]
[394360396,1763491744569,-784.72,0.00050684,120]
[394360397,1763491744596,-500.0,0.00050958,120]
[394360398,1763491744624,-500.0,0.00050958,120]
[394360399,1763491744651,-500.0,0.00050958,120]
[394360400,1763491744679,-500.0,0.00050958,120]
[394360401,1763491744706,-500.0,0.00050958,120]
[394360402,1763491744733,-500.0,0.00050958,120]
[394360403,1763491744763,-500.0,0.00050958,120]
[394360404,1763491744791,-1143.69,0.00050958,120]
[394360405,1763491744817,-541.48,0.00050958,120]
[394360406,1763491744844,-500.0,0.00050958,120]
[394360407,1763491744870,-307.00069042,0.00050958,120]
[394360408,1763491744896,-621.33,0.00050958,30]
[394360409,1763491744925,-500.0,0.00050958,120]
[394360410,1763491744950,-196.57356303,0.00050958,120]
[394360411,1763491744976,-500.0,0.00050958,120]
[394360412,1763491745001,-10753.53,0.00050958,60]
[394360413,1763491745028,-500.0,0.00050958,120]
[394360414,1763491745053,-646.78,0.00050958,120]
[394360415,1763491745080,-5110.2,0.00050958,120]
[394360416,1763491745108,-834.93,0.00050958,120]
[394360417,1763491745133,-500.0,0.00050958,120]
[394360418,1763491745238,-2659.82,0.00050958,120]
[394360419,1763491745268,-784.72,0.00050958,120]
[394360420,1763491745294,-1000.0,0.00051,120]
[394360421,1763491745320,-500.0,0.00051232,120]
[394360422,1763491745347,-500.0,0.00051232,120]
[394360423,1763491745376,-500.0,0.00051232,120]
[394360424,1763491745405,-500.0,0.00051232,120]
[394360425,1763491745432,-500.0,0.00051232,120]
[394360426,1763491745461,-500.0,0.00051232,120]
[394360427,1763491745488,-500.0,0.00051232,120]
[394360428,1763491745515,-1143.69,0.00051232,120]
[394360429,1763491745542,-541.48,0.00051232,120]
[394360430,1763491745570,-197.70347697,0.00051232,120]
[394360431,1763491745597,-621.33,0.00051232,30]
[394360432,1763491745624,-500.0,0.00051232,120]
[394360433,1763491745653,-500.0,0.00051232,120]
[394360434,1763491745679,-10753.53,0.00051232,60]
[394360435,1763491745707,-500.0,0.00051232,120]
[394360436,1763491745732,-646.78,0.00051232,120]
[394360437,1763491745760,-5110.2,0.00051232,120]
[394360438,1763491745786,-834.93,0.00051232,120]
[394360439,1763491745812,-500.0,0.00051232,120]
[394360440,1763491745842,-2659.82,0.00051232,120]
[394360441,1763491745870,-784.72,0.00051232,120]
[394360442,1763491745897,-304344.73523809,0.0005144,30]
[394360443,1763491746147,189.868035,0.0001687,2]
[394360444,1763491751599,-539.64,0.000353,30]
[394360445,1763491751635,-539.64,0.000399,30]
[394360446,1763491751672,-539.64,0.000454,30]
[394360447,1763491751708,-539.64,0.000488,30]
[394360448,1763491751746,-159324.62626191,0.0005144,30]
[394360449,1763491751779,-500.0,0.00051506,120]
[394360450,1763491751812,-500.0,0.00051506,120]
[394360451,1763491751845,-500.0,0.00051506,120]
[394360452,1763491751878,-500.0,0.00051506,120]
[394360453,1763491751913,-566.68806685,0.00051506,120]
[394360454,1763491751945,-500.0,0.00051506,120]
[394360455,1763491751978,-500.0,0.00051506,120]
[394360456,1763491752012,-1143.69,0.00051506,120]
[394360457,1763491752046,-541.48,0.00051506,120]
[394360458,1763491752077,-621.33,0.00051506,30]
[394360459,1763491752110,-500.0,0.00051506,120]
[394360460,1763491752142,-445.2914462,0.00051506,120]
[394360461,1763491752176,-10753.53,0.00051506,60]
[394360462,1763491752208,-500.0,0.00051506,120]
[394360463,1763491752240,-646.78,0.00051506,120]
[394360464,1763491752272,-5110.2,0.00051506,120]
[394360465,1763491752303,-834.93,0.00051506,120]
[394360466,1763491752334,-500.0,0.00051506,120]
[394360467,1763491752370,-2659.82,0.00051506,120]
[394360468,1763491752413,-784.72,0.00051506,120]
[394360469,1763491752531,-500.0,0.0005178,120]
[394360470,1763491752562,-500.0,0.0005178,120]
[394360471,1763491752593,-500.0,0.0005178,120]
[394360472,1763491752625,-500.0,0.0005178,120]
[394360473,1763491752656,-500.0,0.0005178,120]
[394360474,1763491752690,-500.0,0.0005178,120]
[394360475,1763491752723,-1143.69,0.0005178,120]
[394360476,1763491752754,-541.48,0.0005178,120]
[394360477,1763491752785,-621.33,0.0005178,30]
[394360478,1763491752815,-500.0,0.0005178,120]
[394360479,1763491752845,-10753.53,0.0005178,60]
[394360480,1763491752876,-479.02364815,0.0005178,120]
[394360481,1763491752906,-646.78,0.0005178,120]
[394360482,1763491752938,-5110.2,0.0005178,120]
[394360483,1763491752970,-834.93,0.0005178,120]
[394360484,1763491753005,-500.0,0.0005178,120]
[394360485,1763491753042,-2659.82,0.0005178,120]
[394360486,1763491753078,-784.72,0.0005178,120]
[394360487,1763491753117,-289319.57581578,0.00052,120]
[394360488,1763491753150,-380.94105803,0.00052054,120]
[394360489,1763491753180,-500.0,0.00052054,120]
[394360490,1763491753209,-500.0,0.00052054,120]
[394360491,1763491753239,-500.0,0.00052054,120]
[394360492,1763491753269,-500.0,0.00052054,120]
[394360493,1763491753300,-500.0,0.00052054,120]
[394360494,1763491753329,-1143.69,0.00052054,120]
[394360495,1763491753358,-541.48,0.00052054,120]
[394360496,1763491753390,-621.33,0.00052054,30]
[394360497,1763491753422,-500.0,0.00052054,120]
[394360498,1763491753452,-10753.53,0.00052054,60]
[394360499,1763491753480,-646.78,0.00052054,120]
[394360500,1763491753510,-5110.2,0.00052054,120]
[394360501,1763491753541,-834.93,0.00052054,120]
[394360502,1763491753572,-500.0,0.00052054,120]
[394360503,1763491753606,-2659.82,0.00052054,120]
[394360504,1763491753636,-784.72,0.00052054,120]
[394360505,1763491753665,-500.0,0.00052256,60]
[394360506,1763491753691,-500.0,0.00052328,120]
[394360507,1763491753718,-500.0,0.00052328,120]
[394360508,1763491753746,-500.0,0.00052328,120]
[394360509,1763491753773,-500.0,0.00052328,120]
[394360510,1763491753802,-500.0,0.00052328,120]
[394360511,1763491753830,-1143.69,0.00052328,120]
[394360512,1763491753858,-541.48,0.00052328,120]
[394360513,1763491753885,-621.33,0.00052328,30]
[394360514,1763491753915,-500.0,0.00052328,120]
[394360515,1763491753942,-10753.53,0.00052328,60]
[394360516,1763491753968,-646.78,0.00052328,120]
[394360517,1763491753996,-5110.2,0.00052328,120]
[394360518,1763491754023,-834.93,0.00052328,120]
[394360519,1763491754050,-500.0,0.00052328,120]
[394360520,1763491754079,-2659.82,0.00052328,120]
[394360521,1763491754106,-784.72,0.00052328,120]
[394360522,1763491754133,-2575.16738919,0.000524,120]
[394360523,1763491754163,-10000.0,0.000525,120]
[394360524,1763491754190,-500.0,0.00052602,120]
[394360525,1763491754218,-500.0,0.00052602,120]
[394360526,1763491754246,-219.80800586,0.00052602,120]
[394360527,1763491754274,-500.0,0.00052602,120]
[394360528,1763491754301,-500.0,0.00052602,120]
[394360529,1763491754327,-1143.69,0.00052602,120]
[394360530,1763491754352,-541.48,0.00052602,120]
[394360531,1763491754381,-621.33,0.00052602,30]
[394360532,1763491754408,-500.0,0.00052602,120]
[394360533,1763491754435,-10753.53,0.00052602,60]
[394360534,1763491754464,-646.78,0.00052602,120]
[394360535,1763491754494,-5110.2,0.00052602,120]
[394360536,1763491754520,-834.93,0.00052602,120]
[394360537,1763491754547,-500.0,0.00052602,120]
[394360538,1763491754576,-2659.82,0.00052602,120]
[394360539,1763491754604,-784.72,0.00052602,120]
[394360540,1763491754632,-1000.0,0.000528,120]
[394360541,1763491754662,-413.0,0.00052858,120]
[394360542,1763491754690,-500.0,0.00052876,120]
[394360543,1763491754718,-605.36874132,0.00052876,120]
[394360544,1763491754748,-500.0,0.00052876,120]
[394360545,1763491754786,-500.0,0.00052876,120]
[394360546,1763491754814,-1143.69,0.00052876,120]
[394360547,1763491754842,-541.48,0.00052876,120]
[394360548,1763491754870,-621.33,0.00052876,30]
[394360549,1763491754901,-500.0,0.00052876,120]
[394360550,1763491754930,-10753.53,0.00052876,60]
[394360551,1763491754959,-646.78,0.00052876,120]
[394360552,1763491755117,-5110.2,0.00052876,120]
[394360553,1763491755152,-834.93,0.00052876,120]
[394360554,1763491755181,-361.98618729,0.00052876,120]
[394360555,1763491755212,-2659.82,0.00052876,120]
[394360556,1763491755242,-784.72,0.00052876,120]
[394360557,1763491755271,-86558.12974652,0.00053,120]
[394360558,1763491755300,-18911.11,0.00053,90]
[394360559,1763491755327,-500.0,0.0005315,120]
[394360560,1763491755355,-500.0,0.0005315,120]
[394360561,1763491755387,-500.0,0.0005315,120]
[394360562,1763491755415,-1143.69,0.0005315,120]
[394360563,1763491755440,-541.48,0.0005315,120]
[394360564,1763491755467,-621.33,0.0005315,30]
[394360565,1763491755492,-500.0,0.0005315,120]
[394360566,1763491755518,-10753.53,0.0005315,60]
[394360567,1763491755545,-646.78,0.0005315,120]
[394360568,1763491755572,-5110.2,0.0005315,120]
[394360569,1763491755598,-834.93,0.0005315,120]
[394360570,1763491755630,-2659.82,0.0005315,120]
[394360571,1763491755659,-784.72,0.0005315,120]
[394360572,1763491755687,-500.0,0.00053352,60]
[394360573,1763491755717,-500.0,0.00053424,120]
[394360574,1763491755748,-299.469796,0.00053424,120]
[394360575,1763491755776,-500.0,0.00053424,120]
[394360576,1763491755804,-1143.69,0.00053424,120]
[394360577,1763491755834,-541.48,0.00053424,120]
[394360578,1763491755863,-621.33,0.00053424,30]
[394360579,1763491755891,-500.0,0.00053424,120]
[394360580,1763491755920,-10753.53,0.00053424,60]
[394360581,1763491755947,-646.78,0.00053424,120]
[394360582,1763491755974,-5110.2,0.00053424,120]
[394360583,1763491756002,-834.93,0.00053424,120]
[394360584,1763491756032,-2659.82,0.00053424,120]
[394360585,1763491756059,-784.72,0.00053424,120]
[394360586,1763491756086,-216609.4138369,0.0005344,30]
[394360587,1763491763107,2000.0,0.00039811,20]
[394360588,1763491776214,-295.0,0.00039,90]
[394360589,1763491776244,-151.0,0.000426,120]
[394360590,1763491776272,-151.0,0.000426,120]
[394360591,1763491776299,-220.0,0.00043369,20]
[394360592,1763491776329,-151.0,0.00049315,120]
[394360593,1763491776356,-151.0,0.00049315,120]
[394360594,1763491776385,-866.68915041,0.0005041,120]
[394360595,1763491776499,-180821.4675,0.0005344,30]
[394360596,1763491776526,-5000.0,0.000535,120]
[394360597,1763491776553,-500.0,0.00053698,120]
[394360598,1763491776583,-500.0,0.00053698,120]
[394360599,1763491776611,-1143.69,0.00053698,120]
[394360600,1763491776636,-541.48,0.00053698,120]
[394360601,1763491776664,-621.33,0.00053698,30]
[394360602,1763491776690,-500.0,0.00053698,120]
[394360603,1763491776717,-10753.53,0.00053698,60]
[394360604,1763491776744,-646.78,0.00053698,120]
[394360605,1763491776772,-5110.2,0.00053698,120]
[394360606,1763491776804,-834.93,0.00053698,120]
[394360607,1763491776834,-2659.82,0.00053698,120]
[394360608,1763491776860,-784.72,0.00053698,120]
[394360609,1763491776888,-500.0,0.00053972,120]
[394360610,1763491776916,-500.0,0.00053972,120]
[394360611,1763491776944,-1143.69,0.00053972,120]
[394360612,1763491776971,-541.48,0.00053972,120]
[394360613,1763491776998,-621.33,0.00053972,30]
[394360614,1763491777025,-500.0,0.00053972,120]
[394360615,1763491777051,-10753.53,0.00053972,60]
[394360616,1763491777076,-646.78,0.00053972,120]
[394360617,1763491777104,-5110.2,0.00053972,120]
[394360618,1763491777129,-834.93,0.00053972,120]
[394360619,1763491777158,-2659.82,0.00053972,120]
[394360620,1763491777185,-784.72,0.00053972,120]
[394360621,1763491777212,-21838.07081636,0.00054,120]
[394360622,1763491777240,-400.77541225,0.00054,30]
[394360623,1763491777266,-4533.48161918,0.000542,120]
[394360624,1763491777292,-500.0,0.00054246,120]
[394360625,1763491777318,-500.0,0.00054246,120]
[394360626,1763491777344,-1143.69,0.00054246,120]
[394360627,1763491777369,-541.48,0.00054246,120]
[394360628,1763491777396,-621.33,0.00054246,30]
[394360629,1763491777425,-500.0,0.00054246,120]
[394360630,1763491777452,-10753.53,0.00054246,60]
[394360631,1763491777479,-646.78,0.00054246,120]
[394360632,1763491777508,-5110.2,0.00054246,120]
[394360633,1763491777534,-834.93,0.00054246,120]
[394360634,1763491777564,-2659.82,0.00054246,120]
[394360635,1763491777592,-784.72,0.00054246,120]
[394360636,1763491777619,-204.95524923,0.00054495,120]
[394360637,1763491777646,-500.0,0.00054495,120]
[394360638,1763491777674,-500.0,0.00054495,120]
[394360639,1763491777702,-500.0,0.00054495,120]
[394360640,1763491777733,-500.0,0.00054495,120]
[394360641,1763491777763,-500.0,0.00054495,120]
[394360642,1763491777792,-500.0,0.00054495,120]
[394360643,1763491777820,-500.0,0.00054495,120]
[394360644,1763491777848,-500.0,0.00054495,120]
[394360645,1763491777875,-383.0,0.00054495,120]
[394360646,1763491777902,-534.61826976,0.0005452,120]
[394360647,1763491777929,-500.0,0.0005452,120]
[394360648,1763491777958,-1143.69,0.0005452,120]
[394360649,1763491777984,-541.48,0.0005452,120]
[394360650,1763491778010,-621.33,0.0005452,30]
[394360651,1763491778038,-500.0,0.0005452,120]
[394360652,1763491778069,-10753.53,0.0005452,60]
[394360653,1763491778099,-646.78,0.0005452,120]
[394360654,1763491778129,-5110.2,0.0005452,120]
[394360655,1763491778159,-834.93,0.0005452,120]
[394360656,1763491778190,-2659.82,0.0005452,120]
[394360657,1763491778217,-784.72,0.0005452,120]
[394360658,1763491778246,-500.0,0.00054794,120]
[394360659,1763491778276,-1143.69,0.00054794,120]
[394360660,1763491778305,-541.48,0.00054794,120]
[394360661,1763491778335,-621.33,0.00054794,30]
[394360662,1763491778363,-500.0,0.00054794,120]
[394360663,1763491778395,-10753.53,0.00054794,60]
[394360664,1763491778422,-605.62793135,0.00054794,120]
[394360665,1763491778449,-646.78,0.00054794,120]
[394360666,1763491778481,-5110.2,0.00054794,120]
[394360667,1763491778508,-834.93,0.00054794,120]
[394360668,1763491778538,-2659.82,0.00054794,120]
[394360669,1763491778567,-784.72,0.00054794,120]
[394360670,1763491778594,-159.23,0.00054795,120]
[394360671,1763491778621,-500.0,0.00054795,40]
[394360672,1763491778651,-500.0,0.00054795,40]
[394360673,1763491778763,-169.3,0.00054795,120]
[394360674,1763491778793,-197.51729871,0.00054795,120]
[394360675,1763491778822,-197.51,0.00054795,120]
[394360676,1763491778851,-217.6,0.00054795,120]
[394360677,1763491778883,-5000.0,0.00054795,20]
[394360678,1763491778912,-153.0,0.00054795,120]
[394360679,1763491778942,-153.0,0.00054795,120]
[394360680,1763491778972,-153.0,0.00054795,120]
[394360681,1763491779009,-153.0,0.00054795,120]
[394360682,1763491779047,-153.0,0.00054795,120]
[394360683,1763491779084,-153.0,0.00054795,120]
[394360684,1763491779115,-153.0,0.00054795,120]
[394360685,1763491779146,-153.0,0.00054795,120]
[394360686,1763491779176,-153.0,0.00054795,120]
[394360687,1763491779205,-151.0,0.00054795,120]
[394360688,1763491779234,-151.0,0.00054795,120]
[394360689,1763491779263,-151.0,0.00054795,120]
[394360690,1763491779291,-242.934326,0.00054795,120]
[394360691,1763491779381,151.0,0.000426,120]
[394360692,1763491779416,151.0,0.00049315,120]
[394360693,1763491782504,500.0,0.00052256,60]
[394360694,1763491783050,500.0,0.00053352,60]
[394360695,1763491783477,1344.19,0.00049315,60]
[394360696,1763491783603,500.0,0.00054448,60]
[394360697,1763491783722,1344.19,0.00049589,60]
[394360698,1763491783976,1344.19,0.00049863,60]
[394360699,1763491784253,1344.19,0.00050136,60]
[394360700,1763491784521,1344.19,0.0005041,60]
[394360701,1763491784773,1344.19,0.00050684,60]
[394360702,1763491785032,1344.19,0.00050958,60]
[394360703,1763491785272,1344.19,0.00051232,60]
[394360704,1763491785561,1344.19,0.00051506,60]
[394360705,1763491825118,1056.49726843,0.00017769,2]
[394360753,1763491836825,-314.11079535,0.00017769,2]
[394360812,1763491837982,-1533.22611353,0.00017769,2]
[394360814,1763491837991,-300.0,0.0001786,2]
[394360816,1763491838000,-1200.0,0.0001786,2]
[394360818,1763491838010,-252.04121879,0.0001786,2]
[394360820,1763491838020,-1828.64,0.00017861,3]
[394360821,1763491838029,-914.32,0.00017861,3]
[394360824,1763491838039,-457.16,0.00017861,3]
[394360826,1763491838049,-228.58,0.00017861,3]
[394360828,1763491838058,-685.77,0.00017861,3]
[394360830,1763491838068,-150.0,0.00017865,2]
[394360832,1763491838078,-500.0,0.00017868,2]
[394360834,1763491838089,-775.61543551,0.00017869,2]
[394360890,1763491843602,-3427.30000001,0.00017868,2]
[394360891,1763491843626,-812.74858497,0.00017868,2]
[394360915,1763491846182,-932.61,0.00017868,2]
[394360920,1763491903795,181.271,0.00017514,2]
[394360921,1763491956216,219.63817911,0.00017326,2]
[394360922,1763491958481,395.34872239,0.00017326,2]
[394360924,1763491997211,5000.0,0.00017728,2]
[394360927,1763492020062,5000.0,0.0001755,2]
[394360928,1763492042692,5000.0,0.0001755,2]
[394360929,1763492047239,-876.0,0.00017867,2]
[394360930,1763492047269,-300.0,0.00017868,2]
[394360931,1763492047529,-919.49986365,0.00017869,2]
[394360932,1763492049935,-10000.01,0.00017869,2]
[394360933,1763492050108,-10000.01,0.00017869,2]
[394360934,1763492059111,-3782.41168302,0.00017869,2]
[394360935,1763492059148,-2435.18663396,0.00017869,2]
[394360936,1763492059260,-10000.01,0.00017869,2]
[394360937,1763492066741,5000.0,0.0001755,2]
[394360938,1763492089653,5000.0,0.0001755,2]
[394360939,1763492111988,5000.0,0.0001755,2]
[394360940,1763492134497,5000.0,0.0001755,2]
[394360941,1763492157233,2359.79285386,0.0001755,2]
[394360943,1763492230943,487.975895,0.00016868,2]
[394360944,1763492397288,327.47917443,0.00015777,2]
[394360945,1763492399716,244.60129,0.0001735,2]
[394360946,1763492412386,7415.1618845,0.00016765,2]
[394360947,1763492424789,2012.76765107,0.00017659,2]
[394360948,1763492424813,2987.23234893,0.00017659,2]
[394360949,1763492448583,5000.0,0.00017659,2]
[394360950,1763492469474,10000.01,0.00016763,2]
[394360951,1763492469498,1237.3531287,0.00016763,2]
[394360952,1763492471414,5000.0,0.00017659,2]
[394360953,1763492479207,3762.6568713,0.00017659,2]
[394360954,1763492495575,5000.0,0.0001755,2]
[394360955,1763492517333,5000.0,0.0001755,2]
[394360961,1763492563384,368.03687772,0.00016953,2]
[394360962,1763492675744,868.3431287,0.0001755,2]
[394360963,1763492683799,2906.5074523,0.0001755,2]
[394360964,1763492704835,482.06911097,0.00017084,2]
[394360965,1763492708043,867.72439974,0.00017084,2]
[394360966,1763492884168,296.08,0.00015225,2]
[394360967,1763492962089,5000.0,0.0001755,2]
[394360968,1763492967114,-2540.85490512,0.00017659,2]
[394360969,1763492967134,-1433.7747605,0.00017669,2]
[394360970,1763492967155,-206.56325989,0.000177,2]
[394360971,1763492967180,-800.0,0.000177,2]
[394360972,1763492967202,-229.71291563,0.00017757,2]
[394360973,1763493024951,-1200.0,0.00017758,2]
[394360974,1763493024981,-300.0,0.00017758,2]
[394360975,1763493025010,-1200.0,0.00017758,2]
[394360976,1763493025038,-150.0,0.00017758,2]
[394360977,1763493025067,-1142.9,0.00017759,3]
[394360978,1763493025096,-571.45,0.00017759,3]
[394360979,1763493025125,-285.72,0.00017759,3]
[394360980,1763493025323,-857.19,0.00017759,3]
[394360981,1763493025352,-585.15,0.00017766,2]
[394360982,1763493025380,-585.15,0.00017766,2]
[394360983,1763493025407,-585.15,0.00017766,2]
[394360984,1763493031022,-2087.37765107,0.00017766,2]
[394360985,1763493031062,-10000.01,0.00017766,2]
[394360986,1763493031141,-10000.01,0.00017766,2]
[394361022,1763493033970,-10000.01,0.00017766,2]
[394361023,1763493037363,5000.0,0.0001755,2]
[394361058,1763493040405,-4215.24005918,0.00017766,2]
[394361060,1763493040420,-9560.33132031,0.00017766,2]
[394361101,1763493043396,-512.01,0.00017758,2]
[394361102,1763493043408,-512.01,0.00017758,2]
[394361103,1763493043418,-512.01,0.00017758,2]
[394361104,1763493043428,-4137.02096944,0.00017766,2]
[394361105,1763493043438,-181.272,0.00017767,2]
[394361106,1763493043449,-512.01,0.00017767,2]
[394361107,1763493043460,-13222.81153954,0.00017767,2]
[394361108,1763493043471,-500.0,0.00017768,2]
[394361109,1763493043483,-500.0,0.00017768,2]
[394361110,1763493043495,-500.0,0.00017768,2]
[394361111,1763493043506,-500.0,0.00017768,2]
[394361112,1763493043517,-380.121924,0.00017768,2]
[394361113,1763493043529,-1000.0,0.00017768,2]
[394361114,1763493043540,-1000.0,0.00017768,2]
[394361115,1763493043552,-646.1413639,0.00017768,2]
[394361116,1763493043564,-512.01,0.00017768,2]
[394361117,1763493043577,-512.01,0.00017768,2]
[394361118,1763493043587,-512.01,0.00017768,2]
[394361119,1763493043597,-512.01,0.00017768,2]
[394361120,1763493043606,-200.0,0.00017768,2]
[394361121,1763493043616,-500.0,0.00017768,2]
[394361122,1763493043626,-474.33488529,0.00017768,2]
[394361123,1763493043636,-500.0,0.00017768,2]
[394361124,1763493043648,-500.0,0.00017768,2]
[394361125,1763493043662,-500.0,0.00017768,2]
[394361126,1763493043673,-242.87505336,0.00017768,2]
[394361127,1763493043706,-257.12494664,0.00017768,2]
[394361128,1763493043716,-500.0,0.00017768,2]
[394361129,1763493043727,-500.0,0.00017768,2]
[394361130,1763493043738,-500.0,0.00017768,2]
[394361131,1763493043749,-580.60474728,0.00017768,2]
[394361132,1763493043760,-500.0,0.00017768,2]